bitfinex/quotes_BTCUSD_20251215
["timestamp","ask_amount","ask_price","bid_price","bid_amount"]
[1765815061993,0.01147341,87158.0,87154.0,0.01147394]
[1765815062204,0.01147367,87156.0,87147.0,0.03705782]
[1765815062431,0.01147367,87156.0,87151.0,0.01147433]
[1765815062602,0.2294897,87150.0,87147.0,0.03867069]
[1765815062803,0.01147288,87162.0,87149.0,0.04961]
[1765815063003,0.01147302,87161.0,87154.0,0.01147394]
[1765815063203,0.01147328,87159.0,87154.0,0.24095079]
[1765815063409,0.01147262,87164.0,87161.0,0.01147302]
[1765815063591,0.01147341,87158.0,87154.0,0.00161287]
[1765815063791,0.01147354,87157.0,87154.0,0.00161287]
[1765815064013,0.01147367,87156.0,87155.0,0.00654702]
[1765815064192,0.24094989,87156.0,87155.0,0.00654702]
[1765815064402,0.24094729,87159.0,87155.0,0.01802083]
[1765815064403,0.01147328,87159.0,87155.0,0.01802083]
[1765815064626,0.04825,87173.0,87159.0,0.01147328]
[1765815064627,0.24092811,87163.0,87159.0,0.01147328]
[1765815064827,0.24092811,87163.0,87158.0,0.01147341]
[1765815065161,0.22946305,87160.0,87159.0,0.02887232]
[1765815065461,0.22947358,87156.0,87155.0,0.00854702]
[1765815065605,0.24094373,87158.0,87155.0,0.00854702]
[1765815065805,0.22947167,87157.0,87155.0,0.00854702]
[1765815066008,0.22947358,87156.0,87155.0,0.00854702]
[1765815066855,0.24094181,87158.0,87155.0,0.00654702]
[1765815067177,0.00991077,87157.0,87156.0,0.02887338]
[1765815067602,0.23938172,87157.0,87156.0,0.02887338]
[1765815067750,0.22947095,87157.0,87155.0,0.00654702]
[1765815067945,0.01147249,87165.0,87161.0,0.01147302]
[1765815068265,0.01147302,87161.0,87158.0,0.01147341]
[1765815068466,0.01147223,87167.0,87155.0,0.01902083]
[1765815068467,0.01147131,87174.0,87168.0,0.01147209]
[1765815068670,0.22943491,87171.0,87169.0,0.00952021]
[1765815068875,0.22943673,87170.0,87169.0,0.00952021]
[1765815069081,0.01147144,87173.0,87169.0,0.02099217]
[1765815069423,0.01147131,87174.0,87170.0,0.24090808]
[1765815069578,0.01147131,87174.0,87170.0,0.01147183]
[1765815069778,0.24090303,87172.0,87171.0,0.07846588]
[1765815069979,0.01147025,87182.0,87173.0,0.01147144]
[1765815070185,0.22940274,87183.0,87181.0,0.01147038]
[1765815070417,0.01146946,87188.0,87182.0,0.06108025]
[1765815070613,0.01146854,87195.0,87190.0,0.0114692]
[1765815070813,0.01146881,87193.0,87191.0,0.05769142]
[1765815070989,0.25075612,87193.0,87191.0,0.05769142]
[1765815071207,0.01146881,87193.0,87191.0,0.05769142]
[1765815071408,0.24084699,87193.0,87191.0,0.05769142]
[1765815072676,0.24184699,87193.0,87191.0,0.05769142]
[1765815072871,0.2293841,87190.0,87189.0,0.01828]
[1765815074035,0.2293841,87190.0,87175.0,0.01147117]
[1765815074036,0.01147025,87182.0,87175.0,0.01147117]
[1765815074238,0.01147025,87182.0,87176.0,0.01828]
[1765815074440,0.00991077,87187.0,87182.0,0.01147025]
[1765815074610,0.22938993,87188.0,87186.0,0.04961]
[1765815074810,0.01146946,87188.0,87184.0,0.01146999]
[1765815075010,0.01146946,87188.0,87058.0,0.3296295]
[1765815075011,0.24086435,87186.0,87185.0,0.02523417]
[1765815075209,0.01146867,87194.0,87188.0,0.01146946]
[1765815075412,0.22938188,87191.0,87188.0,0.01146946]
[1765815076204,0.01146933,87189.0,87186.0,0.01828]
[1765815076407,0.22939199,87187.0,87186.0,0.01828]
[1765815077014,0.01146986,87185.0,87177.0,0.01147091]
[1765815077217,0.01147038,87181.0,87178.0,0.03132448]
[1765815077392,0.22941304,87179.0,87178.0,0.01304448]
[1765815077606,0.22941304,87179.0,87156.0,0.01147367]
[1765815077607,0.01147315,87160.0,87156.0,0.22947358]
[1765815077805,0.24091912,87167.0,87163.0,0.22945477]
[1765815078064,0.22944774,87166.0,87164.0,0.03424509]
[1765815078270,0.24090402,87172.0,87167.0,0.01147223]
[1765815078481,0.2294341,87171.0,87169.0,0.03412]
[1765815078785,0.22943936,87169.0,87168.0,0.01828]
[1765815079969,0.22943936,87169.0,87155.0,0.00654702]
[1765815079970,0.22947095,87157.0,87155.0,0.00654702]
[1765815080180,0.22947885,87154.0,87153.0,0.01828]
[1765815080351,0.01147354,87157.0,87153.0,0.0524]
[1765815080551,0.24094789,87156.0,87153.0,0.28188123]
[1765815080770,0.01147367,87156.0,87153.0,0.2933553]
[1765815080946,0.24095016,87157.0,87153.0,0.2933553]
[1765815081152,0.2294738,87156.0,87154.0,0.05572659]
[1765815081612,0.22947885,87154.0,87153.0,0.002]
[1765815081823,0.32492885,87154.0,87153.0,0.002]
[1765815082023,1.32492885,87154.0,87153.0,0.004]
[1765815082262,1.32492885,87154.0,87153.0,0.002]
[1765815082435,0.22954733,87128.0,87127.0,0.0004]
[1765815083572,0.22954733,87128.0,87127.0,0.0024]
[1765815083776,1.32499733,87128.0,87127.0,0.0024]
[1765815083928,1.27674733,87128.0,87127.0,0.0024]
[1765815084132,1.32499733,87128.0,87127.0,0.0004]
[1765815084328,1.27674733,87128.0,87127.0,0.0014]
[1765815084934,1.32499733,87128.0,87127.0,0.0014]
[1765815085411,1.84140495,87128.0,87127.0,0.0014]
[1765815085623,1.72620495,87128.0,87127.0,0.0004]
[1765815085829,1.61569733,87128.0,87127.0,0.0004]
[1765815086036,1.61669733,87128.0,87127.0,0.0004]
[1765815086236,1.61769733,87128.0,87127.0,0.0004]
[1765815086492,1.61669733,87128.0,87127.0,0.0004]
[1765815086927,1.62069733,87128.0,87127.0,0.0004]
[1765815087349,1.61669733,87128.0,87127.0,0.0004]
[1765815087696,1.62069733,87128.0,87127.0,0.0004]
[1765815087905,1.61969733,87128.0,87127.0,0.0004]
[1765815088316,1.62269733,87128.0,87127.0,0.0004]
[1765815088670,1.61969733,87128.0,87127.0,0.0004]
[1765815089160,1.62269733,87128.0,87127.0,0.0004]
[1765815090319,1.89842334,87128.0,87127.0,0.0004]
[1765815091144,1.93377618,87128.0,87127.0,0.0004]
[1765815091343,1.70806856,87128.0,87127.0,0.0004]
[1765815091567,1.64735138,87128.0,87127.0,0.0004]
[1765815091768,1.76255138,87128.0,87127.0,0.0004]
[1765815091969,0.64735138,87128.0,87127.0,0.0004]
[1765815092193,1.64735138,87128.0,87127.0,0.0004]
[1765815092821,1.82325038,87128.0,87127.0,0.0004]
[1765815092992,0.22959476,87110.0,87109.0,0.0004]
[1765815093228,1.29616476,87110.0,87109.0,0.0004]
[1765815093527,1.48426881,87110.0,87109.0,0.0004]
[1765815093869,1.65976881,87110.0,87109.0,0.0004]
[1765815094144,1.77596881,87110.0,87109.0,0.0004]
[1765815094530,1.77127643,87110.0,87109.0,0.0004]
[1765815094709,1.83445815,87110.0,87109.0,0.0004]
[1765815094911,1.72395053,87110.0,87109.0,0.0004]
[1765815095522,1.83815053,87110.0,87109.0,0.0004]
[1765815095735,1.72995053,87110.0,87109.0,0.0004]
[1765815096512,1.84515053,87110.0,87109.0,0.0004]
[1765815096724,1.95565815,87110.0,87109.0,0.0004]
[1765815096961,1.72995053,87110.0,87109.0,0.0004]
[1765815097166,0.66338053,87110.0,87109.0,0.0004]
[1765815097466,1.63872648,87110.0,87109.0,0.0004]
[1765815097677,1.68697648,87110.0,87109.0,0.0004]
[1765815098079,1.68397648,87110.0,87109.0,0.0004]
[1765815098290,1.7085015,87110.0,87109.0,0.0004]
[1765815098415,1.68597648,87110.0,87109.0,0.0004]
[1765815098823,1.71049342,87110.0,87109.0,0.0004]
[1765815099073,1.82100104,87110.0,87109.0,0.0004]
[1765815099273,1.70649342,87110.0,87109.0,0.0004]
[1765815099478,1.68197648,87110.0,87109.0,0.0004]
[1765815099638,1.65504648,87110.0,87109.0,0.0004]
[1765815099836,1.68497648,87110.0,87109.0,0.0004]
[1765815100023,1.70948756,87110.0,87109.0,0.0004]
[1765815100224,1.68497648,87110.0,87109.0,0.0004]
[1765815100591,0.23459476,87110.0,87109.0,0.0004]
[1765815100808,0.59308172,87110.0,87109.0,0.0004]
[1765815100986,0.82267648,87110.0,87109.0,0.0004]
[1765815101336,0.005,87110.0,87109.0,0.0004]
[1765815101541,0.005,87110.0,87109.0,0.35354027]
[1765815101754,0.005,87110.0,87109.0,0.42025487]
[1765815102162,0.002,87110.0,87109.0,0.42025487]
[1765815102403,0.002,87110.0,87109.0,0.19065747]
[1765815102618,0.002,87110.0,87109.0,0.19165747]
[1765815102941,0.00991077,87119.0,87117.0,0.22957625]
[1765815103217,0.2295581,87124.0,87121.0,0.01147828]
[1765815103362,0.22956867,87120.0,87118.0,0.07231671]
[1765815103566,0.00991077,87119.0,87118.0,0.07231671]
[1765815103787,0.00991077,87121.0,87120.0,0.24104585]
[1765815104020,0.00991077,87123.0,87121.0,0.22956421]
[1765815104299,0.00991077,87123.0,87122.0,0.04106794]
[1765815105074,0.05816077,87123.0,87122.0,0.04106794]
[1765815105224,0.01147842,87120.0,87117.0,0.00161287]
[1765815105424,0.23948181,87119.0,87117.0,0.00161287]
[1765815105647,0.22957104,87119.0,87118.0,0.001]
[1765815106059,0.22957104,87119.0,87117.0,0.00161287]
[1765815106060,0.27782104,87119.0,87117.0,0.00161287]
[1765815106270,0.00991077,87118.0,87117.0,0.00161287]
[1765815106449,0.00991077,87118.0,87117.0,0.001]
[1765815106650,1.10641077,87118.0,87117.0,0.003]
[1765815106870,1.12107476,87118.0,87117.0,0.002]
[1765815107077,0.22959476,87110.0,87109.0,0.0004]
[1765815107417,0.22958688,87113.0,87110.0,0.2295934]
[1765815107567,0.00991077,87112.0,87111.0,0.07387651]
[1765815107749,0.24106623,87113.0,87109.0,0.24147645]
[1765815107949,0.24106623,87113.0,87109.0,0.01187987]
[1765815107950,0.22958999,87112.0,87109.0,0.01187987]
[1765815108373,0.2295926,87111.0,87109.0,0.0004]
[1765815108570,0.23950553,87110.0,87109.0,0.0004]
[1765815108790,0.22959476,87110.0,87109.0,0.02997054]
[1765815109002,0.22959476,87110.0,87109.0,0.00201287]
[1765815109226,0.27784476,87110.0,87109.0,0.0004]
[1765815109385,0.32609476,87110.0,87109.0,0.0014]
[1765815109703,1.32609476,87110.0,87109.0,0.0004]
[1765815109900,1.35070821,87110.0,87109.0,0.0014]
[1765815110131,1.35070821,87110.0,87109.0,0.0034]
[1765815111124,1.30245821,87110.0,87109.0,0.0034]
[1765815111498,1.41388993,87110.0,87109.0,0.0034]
[1765815111956,1.23247581,87110.0,87109.0,0.0034]
[1765815112316,0.23247581,87110.0,87109.0,0.0034]
[1765815112514,0.23247581,87110.0,87109.0,0.0014]
[1765815112515,1.23247581,87110.0,87109.0,0.0014]
[1765815112763,1.23247581,87110.0,87109.0,0.0004]
[1765815112916,1.23747581,87110.0,87109.0,0.0004]
[1765815113282,1.25379581,87110.0,87109.0,0.0004]
[1765815113470,1.7700912,87110.0,87109.0,0.0004]
[1765815113674,1.82894102,87110.0,87109.0,0.0004]
[1765815113874,1.71574102,87110.0,87109.0,0.0004]
[1765815114092,1.67041501,87110.0,87109.0,0.0004]
[1765815114379,0.73193938,87110.0,87109.0,0.0004]
[1765815114522,1.73193938,87110.0,87109.0,0.0004]
[1765815114723,1.61673938,87110.0,87109.0,0.0004]
[1765815114921,1.66841501,87110.0,87109.0,0.0004]
[1765815115122,1.64909501,87110.0,87109.0,0.0004]
[1765815115331,0.73193938,87110.0,87109.0,0.0004]
[1765815115644,1.73493938,87110.0,87109.0,0.0004]
[1765815115859,1.61673938,87110.0,87109.0,0.0004]
[1765815116050,1.846447,87110.0,87109.0,0.0004]
[1765815116250,1.78492263,87110.0,87109.0,0.0004]
[1765815116446,1.62101744,87110.0,87109.0,0.0004]
[1765815116685,1.55921501,87110.0,87109.0,0.0004]
[1765815117297,1.67441501,87110.0,87109.0,0.0004]
[1765815117444,1.55921501,87110.0,87109.0,0.0004]
[1765815117656,1.47526501,87110.0,87109.0,0.0004]
[1765815118055,1.47126501,87110.0,87109.0,0.0004]
[1765815118353,1.52251501,87110.0,87109.0,0.0004]
[1765815118554,1.50696501,87110.0,87109.0,0.0004]
[1765815118754,0.08351329,87110.0,87109.0,0.0004]
[1765815118955,0.14367406,87110.0,87109.0,0.0004]
[1765815119200,0.14668783,87110.0,87109.0,0.0004]
[1765815119372,0.14468783,87110.0,87109.0,0.0004]
[1765815119754,1.19193783,87110.0,87109.0,0.0004]
[1765815120158,1.15009706,87110.0,87109.0,0.0004]
[1765815120361,1.19834706,87110.0,87109.0,0.0004]
[1765815120507,1.48904706,87110.0,87109.0,0.0004]
[1765815120687,1.55084949,87110.0,87109.0,0.0004]
[1765815120890,1.48904706,87110.0,87109.0,0.0004]
[1765815121094,1.71475468,87110.0,87109.0,0.0004]
[1765815121280,1.79361019,87110.0,87109.0,0.0004]
[1765815121861,1.79361019,87110.0,87106.0,0.00394413]
[1765815121862,1.68552106,87107.0,87106.0,0.00394413]
[1765815122002,1.5203343,87095.0,87094.0,0.0004]
[1765815122186,1.68475244,87095.0,87094.0,0.0004]
[1765815122388,1.73300244,87095.0,87094.0,0.0004]
[1765815122608,1.79488174,87095.0,87094.0,0.0004]
[1765815122838,1.77656174,87095.0,87094.0,0.0004]
[1765815123150,1.73300244,87095.0,87094.0,0.0004]
[1765815123532,1.84820244,87095.0,87094.0,0.0004]
[1765815123735,1.73300244,87095.0,87094.0,0.0004]
[1765815124185,1.68475244,87095.0,87094.0,0.0004]
[1765815124316,0.33574947,87095.0,87094.0,0.0004]
[1765815124504,0.06585307,87095.0,87094.0,0.0004]
[1765815124703,0.02461345,87095.0,87094.0,0.05085287]
[1765815124909,0.02461345,87095.0,87094.0,0.17938135]
[1765815125110,0.02461345,87095.0,87094.0,0.43198198]
[1765815125326,0.02461345,87095.0,87094.0,0.40901829]
[1765815125635,0.002,87095.0,87094.0,0.40901829]
[1765815125838,0.001,87095.0,87094.0,0.40901829]
[1765815126042,0.02461345,87095.0,87094.0,0.06119135]
[1765815126268,0.02461345,87095.0,87094.0,0.0034]
[1765815126269,1.35997852,87095.0,87094.0,0.0034]
[1765815126425,1.39130737,87095.0,87094.0,0.0054]
[1765815126624,0.54720737,87095.0,87094.0,0.0054]
[1765815127270,1.34305656,87095.0,87094.0,0.0024]
[1765815127478,0.28517448,87095.0,87094.0,0.0004]
[1765815127753,1.33274448,87095.0,87094.0,0.00077797]
[1765815127880,1.38099448,87095.0,87094.0,0.00177797]
[1765815128081,1.35006775,87095.0,87094.0,0.00177797]
[1765815128335,0.25424775,87095.0,87094.0,0.00177797]
[1765815128570,0.63911775,87095.0,87094.0,0.00077797]
[1765815128712,0.63911775,87095.0,87094.0,0.00177797]
[1765815128915,0.67004419,87095.0,87094.0,0.00277797]
[1765815129162,0.63911775,87095.0,87094.0,0.00277797]
[1765815129726,0.6700431,87095.0,87094.0,0.00277797]
[1765815129914,0.6700431,87095.0,87094.0,0.02602099]
[1765815130123,0.02461345,87095.0,87094.0,0.3754608]
[1765815130321,0.25424775,87095.0,87094.0,0.02763386]
[1765815130540,1.46526775,87095.0,87094.0,0.00277797]
[1765815130748,1.35006775,87095.0,87094.0,0.00277797]
[1765815130995,1.39130656,87095.0,87094.0,0.00277797]
[1765815131204,1.78502692,87095.0,87094.0,0.00277797]
[1765815131403,1.79485925,87095.0,87094.0,0.00277797]
[1765815131749,1.95871626,87095.0,87094.0,0.00277797]
[1765815131957,1.84820864,87095.0,87094.0,0.00277797]
[1765815132158,1.52035803,87086.0,87085.0,0.0004]
[1765815132368,1.60328065,87086.0,87085.0,0.0004]
[1765815132655,1.65153065,87086.0,87085.0,0.00068351]
[1765815133623,1.76673065,87086.0,87085.0,0.00068351]
[1765815133973,1.87723827,87086.0,87085.0,0.00068351]
[1765815134175,1.87723827,87086.0,87069.0,0.0004]
[1765815134176,1.6355765,87079.0,87069.0,0.0004]
[1765815134421,1.67163751,87079.0,87069.0,0.0004]
[1765815134627,1.83508751,87079.0,87069.0,0.0004]
[1765815134815,1.83508751,87079.0,87077.0,0.00025205]
[1765815135003,0.73305084,87079.0,87077.0,0.00025205]
[1765815135204,1.84825084,87079.0,87077.0,0.00025205]
[1765815135425,0.22970024,87070.0,87069.0,0.0004]
[1765815135676,1.75780208,87070.0,87069.0,0.0004]
[1765815135890,1.68563973,87062.0,87061.0,0.0004]
[1765815136122,1.66094318,87062.0,87061.0,0.0004]
[1765815136307,1.82439318,87062.0,87061.0,0.0004]
[1765815136518,1.87624872,87062.0,87061.0,0.0004]
[1765815137028,1.76104872,87062.0,87061.0,0.0004]
[1765815137220,1.92045279,87062.0,87061.0,0.0004]
[1765815137524,1.87924872,87062.0,87061.0,0.0004]
[1765815137868,1.52046093,87047.0,87032.0,0.0004]
[1765815138064,1.61096438,87047.0,87032.0,0.0004]
[1765815138271,1.74980093,87047.0,87032.0,0.0004]
[1765815138491,1.63460093,87047.0,87032.0,0.0004]
[1765815138896,1.81981345,87047.0,87032.0,0.0004]
[1765815139114,1.93501345,87047.0,87032.0,0.0004]
[1765815139477,1.96306712,87047.0,87032.0,0.0004]
[1765815139674,1.52049789,87033.0,87032.0,0.0004]
[1765815139958,1.58638789,87033.0,87032.0,0.0004]
[1765815140113,1.69781961,87033.0,87032.0,0.0004]
[1765815140317,1.86487515,87033.0,87032.0,0.0004]
[1765815140744,1.81301961,87033.0,87032.0,0.0004]
[1765815140921,1.81501961,87033.0,87032.0,0.0004]
[1765815141136,1.70081961,87033.0,87032.0,0.0004]
[1765815141319,1.750838,87033.0,87032.0,0.0004]
[1765815141651,1.90467892,87033.0,87032.0,0.00181857]
[1765815141857,1.63572694,87022.0,87021.0,0.0004]
[1765815142081,1.75163533,87022.0,87021.0,0.0004]
[1765815142292,1.79988533,87022.0,87021.0,0.0004]
[1765815143165,1.68468533,87022.0,87021.0,0.0004]
[1765815143551,1.79988533,87022.0,87021.0,0.0004]
[1765815143756,1.85174087,87022.0,87021.0,0.0004]
[1765815144007,1.79988533,87022.0,87021.0,0.0004]
[1765815146008,1.68468533,87022.0,87021.0,0.0004]
[1765815146187,1.79988533,87022.0,87021.0,0.0004]
[1765815147234,1.61634694,87022.0,87021.0,0.0004]
[1765815147570,1.73154694,87022.0,87021.0,0.00074689]
[1765815147790,1.63466694,87022.0,87021.0,0.00074689]
[1765815148015,1.74517456,87022.0,87021.0,0.00074689]
[1765815148268,0.22987977,87002.0,87001.0,0.0004]
[1765815148468,1.58646977,87002.0,87001.0,0.0004]
[1765815148602,1.63471977,87002.0,87001.0,0.0004]
[1765815149327,1.68657531,87002.0,87001.0,0.0004]
[1765815149570,1.63471977,87002.0,87001.0,0.0004]
[1765815149957,1.69790149,87002.0,87001.0,0.0024]
[1765815150129,1.81310149,87002.0,87001.0,0.0024]
[1765815150345,1.81310149,87002.0,87001.0,0.0034]
[1765815150548,1.69790149,87002.0,87001.0,0.0034]
[1765815150752,1.81310149,87002.0,87001.0,0.0034]
[1765815150955,1.8584275,87002.0,87001.0,0.0034]
[1765815151152,1.9736275,87002.0,87001.0,0.0034]
[1765815151355,1.8584275,87002.0,87001.0,0.0034]
[1765815151919,1.9553075,87002.0,87001.0,0.0024]
[1765815152130,1.9736275,87002.0,87001.0,0.0024]
[1765815152646,1.9736275,87002.0,87001.0,0.0004]
[1765815153114,1.9746275,87002.0,87001.0,0.0004]
[1765815153523,1.9736275,87002.0,87001.0,0.0004]
[1765815153886,1.8604275,87002.0,87001.0,0.0010309]
[1765815154094,1.9756275,87002.0,87001.0,0.0010309]
[1765815154300,1.68058149,87002.0,87001.0,0.0010309]
[1765815154470,1.34163149,87002.0,87001.0,0.0010309]
[1765815154687,1.34363149,87002.0,87001.0,0.0010309]
[1765815154883,1.63433149,87002.0,87001.0,0.0010309]
[1765815155111,0.79613149,87002.0,87001.0,0.0010309]
[1765815155328,0.31238149,87002.0,87001.0,0.0010309]
[1765815155527,0.58476149,87002.0,87001.0,0.0010309]
[1765815155729,0.58576149,87002.0,87001.0,0.0010309]
[1765815155904,0.63276149,87002.0,87001.0,0.0010309]
[1765815156392,1.68301149,87002.0,87001.0,0.0010309]
[1765815156808,1.68101149,87002.0,87001.0,0.0010309]
[1765815157253,1.68201149,87002.0,87001.0,0.0010309]
[1765815157656,1.63376149,87002.0,87001.0,0.0010309]
[1765815159098,1.68201149,87002.0,87001.0,0.0010309]
[1765815159458,1.79721149,87002.0,87001.0,0.0010309]
[1765815159680,1.68201149,87002.0,87001.0,0.0010309]
[1765815159950,1.70033149,87002.0,87001.0,0.0010309]
[1765815161925,1.81553149,87002.0,87001.0,0.0010309]
[1765815162156,1.70033149,87002.0,87001.0,0.0010309]
[1765815163338,1.81553149,87002.0,87001.0,0.0010309]
[1765815163656,1.70033149,87002.0,87001.0,0.0010309]
[1765815164686,1.8608575,87002.0,87001.0,0.0010309]
[1765815164853,2.00079236,87002.0,87001.0,0.0010309]
[1765815165053,1.68581666,86995.0,86994.0,0.0004]
[1765815165254,1.63583262,86982.0,86981.0,0.0004]
[1765815165457,1.65013434,86982.0,86981.0,0.0004]
[1765815165660,1.69838434,86982.0,86981.0,0.0004]
[1765815165863,1.81159117,86982.0,86981.0,0.0004]
[1765815166041,1.78193827,86982.0,86981.0,0.0004]
[1765815166260,1.81358434,86982.0,86981.0,0.0004]
[1765815166643,1.69838434,86982.0,86981.0,0.0004]
[1765815166839,1.70913172,86982.0,86981.0,0.0004]
[1765815167248,1.66088172,86982.0,86981.0,0.0004]
[1765815167657,1.70913172,86982.0,86981.0,0.0004]
[1765815167854,1.93483934,86982.0,86981.0,0.0004]
[1765815168055,1.81963934,86982.0,86981.0,0.0004]
[1765815168262,2.00962697,86982.0,86981.0,0.0004]
[1765815168462,1.89442697,86982.0,86981.0,0.0004]
[1765815168679,2.00962697,86982.0,86981.0,0.0004]
[1765815168875,2.21778824,86982.0,86981.0,0.0004]
[1765815169119,0.23000402,86955.0,86939.0,0.0092247]
[1765815169321,1.58702402,86955.0,86939.0,0.0092247]
[1765815169623,1.69845574,86955.0,86939.0,0.0092247]
[1765815170120,1.81365574,86955.0,86939.0,0.0092247]
[1765815170332,1.69845574,86955.0,86939.0,0.0092247]
[1765815170614,1.81365574,86955.0,86939.0,0.0092247]
[1765815170821,1.69845574,86955.0,86954.0,0.0074]
[1765815171055,1.86551128,86955.0,86954.0,0.0088836]
[1765815171235,1.81365574,86955.0,86954.0,0.0088836]
[1765815171801,1.69845574,86955.0,86954.0,0.0088836]
[1765815172280,1.81365574,86955.0,86954.0,0.0048836]
[1765815172483,1.69845574,86955.0,86954.0,0.0048836]
[1765815172687,1.68013574,86955.0,86954.0,0.0048836]
[1765815172861,1.69845574,86955.0,86954.0,0.0048836]
[1765815173220,1.69845574,86955.0,86954.0,0.0018836]
[1765815173435,1.81365574,86955.0,86954.0,0.0018836]
[1765815173644,1.97418175,86955.0,86954.0,0.0018836]
[1765815173858,1.88842861,86955.0,86954.0,0.0088836]
[1765815174323,1.5207437,86940.0,86939.0,0.0092247]
[1765815174525,1.5870637,86940.0,86939.0,0.0092247]
[1765815174703,1.74582132,86940.0,86939.0,0.0092247]
[1765815174873,1.1995137,86940.0,86939.0,0.0092247]
[1765815175448,1.6353137,86940.0,86939.0,0.0092247]
[1765815176358,1.68533209,86940.0,86939.0,0.0092247]
[1765815176520,1.68533209,86940.0,86939.0,0.0102247]
[1765815176717,1.80053209,86940.0,86939.0,0.0102247]
[1765815177113,1.97422143,86940.0,86939.0,0.0102247]
[1765815177297,1.81369542,86940.0,86939.0,0.0122247]
[1765815177962,1.69849542,86940.0,86939.0,0.0122247]
[1765815178148,1.86371381,86940.0,86939.0,0.0122247]
[1765815178347,1.86371381,86940.0,86933.0,1e-08]
[1765815178348,0.73397797,86934.0,86933.0,1e-08]
[1765815178552,1.61877797,86934.0,86933.0,1e-08]
[1765815178727,1.78222797,86934.0,86933.0,1e-08]
[1765815179494,1.78222797,86934.0,86913.0,0.0002]
[1765815179495,0.34071839,86931.0,86913.0,0.0002]
[1765815179701,1.52078605,86924.0,86913.0,0.0002]
[1765815179983,1.61131605,86924.0,86913.0,0.0002]
[1765815180191,1.64124605,86924.0,86913.0,0.0002]
[1765815180439,0.46409605,86924.0,86923.0,0.00137914]
[1765815180627,0.48241605,86924.0,86923.0,0.00137914]
[1765815180935,0.2415767,86929.0,86923.0,0.00137914]
[1765815180936,0.0115035,86930.0,86923.0,0.04936201]
[1765815181158,0.01150403,86926.0,86923.0,0.01551153]
[1765815181415,0.9426,86924.0,86923.0,0.00201287]
[1765815181619,0.1602,86924.0,86923.0,0.0004]
[1765815181821,0.17011077,86924.0,86923.0,0.0004]
[1765815182042,0.17011077,86924.0,86923.0,0.0034]
[1765815182464,0.17011077,86924.0,86923.0,0.0064]
[1765815182711,0.00991077,86924.0,86923.0,0.0064]
[1765815182910,0.24158745,86928.0,86923.0,0.0064]
[1765815182911,0.01150337,86931.0,86927.0,0.0115039]
[1765815183104,0.0115039,86927.0,86923.0,0.0923973]
[1765815183335,0.01150297,86934.0,86929.0,0.01150364]
[1765815183525,0.01150403,86926.0,86923.0,0.00801287]
[1765815183716,0.02421,86935.0,86923.0,0.00801287]
[1765815183717,0.01150139,86946.0,86942.0,0.01150192]
[1765815183920,0.24153679,86944.0,86942.0,0.00161287]
[1765815184072,0.23003341,86944.0,86942.0,0.00161287]
[1765815184276,0.00991077,86943.0,86942.0,0.00161287]
[1765815185127,0.01150099,86949.0,86943.0,0.01150178]
[1765815185302,0.06318172,86968.0,86951.0,0.01150073]
[1765815185303,0.23000477,86955.0,86951.0,0.01150073]
[1765815185505,0.23000477,86955.0,86952.0,0.00957207]
[1765815185506,0.01150046,86953.0,86952.0,0.00957207]
[1765815185706,0.01150046,86953.0,86951.0,0.00161287]
[1765815185883,0.00991077,86952.0,86951.0,0.00161287]
[1765815186228,0.22998847,86961.0,86958.0,0.0114998]
[1765815186466,0.22998847,86961.0,86951.0,0.00161287]
[1765815186467,0.01150006,86956.0,86952.0,0.05849059]
[1765815186637,0.01149954,86960.0,86957.0,0.01149993]
[1765815186859,0.01149927,86962.0,86959.0,0.04699]
[1765815187038,0.2299676,86969.0,86967.0,0.01149861]
[1765815187272,0.2299807,86964.0,86960.0,0.22999005]
[1765815187506,0.22998349,86963.0,86961.0,0.05689847]
[1765815187643,0.22998815,86961.0,86960.0,0.00161287]
[1765815187991,0.23000667,86954.0,86952.0,0.001]
[1765815188198,0.00991077,86953.0,86952.0,0.001]
[1765815188513,0.00991077,86953.0,86952.0,0.00261287]
[1765815188679,0.23991856,86954.0,86952.0,0.00261287]
[1765815188880,0.01149901,86964.0,86961.0,0.0114994]
[1765815189081,0.23000574,86955.0,86953.0,0.00161287]
[1765815189285,0.23000667,86954.0,86953.0,0.00161287]
[1765815189465,0.23000426,86955.0,86953.0,0.00161287]
[1765815189675,0.00991077,86954.0,86953.0,0.00161287]
[1765815189868,0.23002518,86947.0,86943.0,0.01150178]
[1765815190066,0.23002426,86948.0,86946.0,0.00186547]
[1765815190474,0.24152194,86949.0,86947.0,0.02989527]
[1765815190680,0.23001989,86949.0,86947.0,0.07849814]
[1765815190915,0.24151998,86950.0,86947.0,0.07849814]
[1765815191111,0.01150046,86953.0,86949.0,0.01150099]
[1765815191358,0.01150046,86953.0,86949.0,0.04860287]
[1765815191359,0.01150059,86952.0,86949.0,0.04860287]
[1765815191479,0.01150046,86953.0,86950.0,0.03757731]
[1765815191673,0.0114998,86958.0,86950.0,0.03757731]
[1765815191674,0.24149659,86958.0,86950.0,0.28070804]
[1765815191880,0.01149874,86966.0,86961.0,0.0114994]
[1765815192084,0.02472885,86965.0,86964.0,0.01149901]
[1765815192286,0.02472885,86965.0,86964.0,0.24309033]
[1765815192489,0.02472885,86965.0,86964.0,0.43671718]
[1765815192699,0.02472885,86970.0,86969.0,0.22996699]
[1765815192915,0.02473033,86972.0,86970.0,0.05848821]
[1765815193107,0.03622801,86974.0,86971.0,0.01149808]
[1765815193312,0.02473033,86974.0,86973.0,0.01149782]
[1765815193536,0.22995211,86975.0,86973.0,0.1124924]
[1765815193958,0.02473033,86977.0,86975.0,0.22995025]
[1765815194162,0.01149716,86978.0,86975.0,0.00161287]
[1765815194377,0.0346411,86977.0,86975.0,0.00161287]
[1765815194577,0.0346411,86977.0,86975.0,0.23156347]
[1765815194831,0.24143387,86981.0,86979.0,0.22994056]
[1765815194832,0.02473033,86981.0,86979.0,0.22994056]
[1765815195015,0.0114953,86992.0,86985.0,0.22992469]
[1765815195016,0.02473033,86986.0,86985.0,0.22992469]
[1765815195214,0.01149583,86988.0,86983.0,0.01149649]
[1765815195424,0.01149583,86988.0,86982.0,0.01149663]
[1765815195425,0.02473033,86988.0,86985.0,0.00161287]
[1765815195572,0.2645627,86987.0,86986.0,0.03504178]
[1765815195760,0.25465193,86987.0,86985.0,0.00161287]
[1765815195960,0.0346411,86986.0,86985.0,0.00161287]
[1765815196202,0.241439,86979.0,86976.0,0.01605036]
[1765815196400,0.24143758,86979.0,86976.0,0.01766323]
[1765815196579,0.22994346,86978.0,86976.0,0.00161287]
[1765815196782,0.01149676,86981.0,86977.0,0.01149729]
[1765815196962,0.00991077,86981.0,86979.0,0.22993959]
[1765815197168,0.2414241,86984.0,86980.0,0.05848689]
[1765815197405,0.03091688,86992.0,86980.0,0.05848689]